bitfinex-derivatives/quotes_BTCF0:USTF0_20240923
["timestamp","ask_amount","ask_price","bid_price","bid_amount"]
[1727074018023,0.176077,63796.0,63795.0,0.001]
[1727074018732,0.078378,63795.0,63794.0,0.3608]
[1727074018943,0.253778,63795.0,63794.0,0.34733194]
[1727074019141,0.07838,63794.0,63793.0,0.07823418]
[1727074019438,0.07838,63794.0,63793.0,0.43903418]
[1727074019933,0.07838,63794.0,63793.0,0.07823418]
[1727074020231,0.07838,63794.0,63793.0,0.3608]
[1727074020832,0.07838,63794.0,63793.0,0.3638]
[1727074022335,0.07838,63794.0,63793.0,0.3648]
[1727074022730,0.07838,63794.0,63793.0,0.41173134]
[1727074022937,0.07838,63794.0,63793.0,0.3648]
[1727074025727,0.07838,63794.0,63793.0,0.41173134]
[1727074025922,0.07838,63794.0,63793.0,0.3648]
[1727074027232,0.07838,63794.0,63793.0,0.50254058]
[1727074028121,0.07838,63794.0,63793.0,0.5025325]
[1727074028327,0.03916312,63794.0,63793.0,0.5025325]
[1727074028527,0.16916312,63794.0,63793.0,0.5025325]
[1727074029735,0.16916312,63794.0,63793.0,0.61743426]
[1727074030432,0.16916312,63794.0,63793.0,0.47570176]
[1727074032734,0.16916312,63794.0,63793.0,0.47528031]
[1727074033640,0.16916312,63794.0,63793.0,0.56922386]
[1727074033828,0.16916312,63794.0,63793.0,0.47528031]
[1727074035232,0.16916312,63794.0,63793.0,0.3608]
[1727074036345,0.11916312,63794.0,63793.0,0.40777944]
[1727074039244,0.11916312,63794.0,63793.0,0.04697944]
[1727074039453,0.11916312,63794.0,63792.0,0.3608]
[1727074039630,0.078381,63793.0,63792.0,0.42344245]
[1727074040940,0.078381,63793.0,63792.0,0.42744245]
[1727074041750,0.078381,63793.0,63792.0,0.42944245]
[1727074042346,0.078381,63793.0,63792.0,0.61774389]
[1727074043456,0.078381,63793.0,63792.0,0.4812837]
[1727074044554,0.078381,63793.0,63792.0,0.61775687]
[1727074044753,0.078381,63793.0,63792.0,0.4812837]
[1727074044951,0.0454,63795.0,63792.0,0.4812837]
[1727074045156,0.0454,63795.0,63794.0,0.09393519]
[1727074045353,0.0454,63795.0,63794.0,0.20841889]
[1727074046560,0.1254,63795.0,63794.0,0.20841889]
[1727074046953,0.1254,63795.0,63794.0,0.21041889]
[1727074047646,0.1254,63795.0,63794.0,0.1164837]
[1727074049257,0.1254,63795.0,63794.0,0.21042822]
[1727074049463,0.203778,63795.0,63794.0,0.002]
[1727074050759,0.203778,63795.0,63794.0,0.3628]
[1727074051762,0.123778,63795.0,63794.0,0.3628]
[1727074051953,0.203778,63795.0,63794.0,0.3628]
[1727074053759,0.203778,63795.0,63794.0,0.002]
[1727074053966,0.203778,63795.0,63794.0,0.3628]
[1727074057465,0.203778,63795.0,63794.0,0.57071693]
[1727074061669,0.203778,63795.0,63794.0,0.57072881]
[1727074063475,0.203778,63795.0,63794.0,0.20992881]
[1727074063668,0.203778,63795.0,63794.0,0.57072881]
[1727074063868,0.203778,63795.0,63794.0,0.09594452]
[1727074064062,0.203778,63795.0,63794.0,0.45674452]
[1727074064473,0.203778,63795.0,63794.0,0.09594452]
[1727074064664,0.203778,63795.0,63794.0,0.57073042]
[1727074065169,0.203778,63795.0,63794.0,0.4767859]
[1727074065773,0.203778,63795.0,63794.0,0.3628]
[1727074067863,0.203778,63795.0,63794.0,0.47678756]
[1727074069963,0.203778,63795.0,63794.0,0.47680024]
[1727074072274,0.203778,63795.0,63794.0,0.3628]
[1727074072674,0.203778,63795.0,63794.0,0.002]
[1727074072976,0.203778,63795.0,63794.0,0.3628]
[1727074078375,0.203778,63795.0,63794.0,0.002]
[1727074078670,0.203778,63795.0,63794.0,0.3628]
[1727074080176,0.1645603,63795.0,63794.0,0.61271901]
[1727074083284,0.1645603,63795.0,63794.0,0.47653062]
[1727074087282,0.1645603,63795.0,63794.0,0.42547632]
[1727074090284,0.1645603,63795.0,63794.0,0.3628]
[1727074091185,0.0061823,63795.0,63794.0,0.3628]
[1727074091391,0.0861823,63795.0,63794.0,0.3628]
[1727074092177,0.0861823,63795.0,63794.0,0.42547368]
[1727074092382,0.0861823,63795.0,63794.0,0.42547515]
[1727074092592,0.1645603,63795.0,63794.0,0.42547515]
[1727074095296,0.1645603,63795.0,63794.0,0.47643935]
[1727074097400,0.1645603,63795.0,63794.0,0.47643347]
[1727074098792,0.1645603,63795.0,63794.0,0.12479645]
[1727074099396,0.078379,63794.0,63793.0,0.07836298]
[1727074099595,0.078379,63794.0,63792.0,0.004]
[1727074099596,0.0861823,63795.0,63792.0,0.00358687]
[1727074099798,0.59756,63793.0,63792.0,0.00358687]
[1727074100397,0.51918,63793.0,63786.0,0.09405856]
[1727074100591,0.08,63788.0,63786.0,0.09405856]
[1727074100807,0.078389,63787.0,63785.0,0.09405856]
[1727074100997,0.158389,63786.0,63785.0,0.09405856]
[1727074101403,0.158389,63786.0,63784.0,0.09405856]
[1727074101698,0.08,63785.0,63784.0,0.09405856]
[1727074101896,0.4408,63785.0,63783.0,0.09405856]
[1727074102399,0.4408,63785.0,63781.0,0.09405856]
[1727074102400,0.078392,63784.0,63781.0,0.09405856]
[1727074102606,0.08,63782.0,63781.0,0.09402263]
[1727074104395,0.081,63782.0,63781.0,0.014]
[1727074105189,0.081,63782.0,63781.0,0.10802263]
[1727074105190,0.082,63782.0,63781.0,0.10802263]
[1727074105504,0.082,63782.0,63781.0,0.014]
[1727074106892,0.160394,63782.0,63781.0,0.014]
[1727074112404,0.160394,63782.0,63781.0,0.06095042]
[1727074117195,0.206294,63782.0,63781.0,0.014]
[1727074122811,0.206294,63782.0,63781.0,0.12547167]
[1727074123119,0.206294,63782.0,63781.0,0.014]
[1727074124412,0.4887,63782.0,63776.0,0.09402263]
[1727074124610,0.4887,63782.0,63773.0,0.09402263]
[1727074124611,0.08,63778.0,63773.0,0.09402263]
[1727074124914,0.4087,63782.0,63765.0,0.44015126]
[1727074124915,0.439203,63775.0,63774.0,0.11165819]
[1727074125422,0.439203,63775.0,63764.0,0.08076839]
[1727074125423,0.078405,63774.0,63767.0,0.09402263]
[1727074125606,0.08,63768.0,63766.0,0.09402263]
[1727074125805,0.08,63768.0,63767.0,0.11148489]
[1727074127813,0.081,63768.0,63767.0,0.11948489]
[1727074128015,0.082,63768.0,63767.0,0.11948489]
[1727074128517,0.082,63768.0,63767.0,0.008]
[1727074129222,0.082,63768.0,63767.0,0.11953768]
[1727074134723,0.082,63768.0,63767.0,0.008]
[1727074137920,0.082,63768.0,63767.0,0.10200191]
[1727074138121,0.082,63768.0,63767.0,0.21356047]
[1727074140929,0.002,63768.0,63767.0,0.21356047]
[1727074141136,0.002,63768.0,63767.0,0.11955856]
[1727074142236,0.002,63768.0,63767.0,0.48035856]
[1727074143231,0.080411,63768.0,63767.0,0.57430654]
[1727074145434,0.080411,63768.0,63767.0,0.48033648]
[1727074145834,0.080411,63768.0,63767.0,0.57430654]
[1727074146032,0.080411,63768.0,63767.0,0.48033648]
[1727074146239,0.080411,63768.0,63767.0,0.57431071]
[1727074146547,0.080411,63768.0,63767.0,0.48033648]
[1727074146837,0.080411,63768.0,63767.0,0.57431431]
[1727074147023,0.080411,63768.0,63767.0,0.21351431]
[1727074147228,0.0455,63769.0,63767.0,0.25253683]
[1727074147441,0.0455,63769.0,63768.0,0.11153648]
[1727074148533,0.0465,63769.0,63768.0,0.11119993]
[1727074148732,0.0475,63769.0,63768.0,0.11119993]
[1727074149136,0.0465,63769.0,63768.0,0.11119993]
[1727074149442,0.0475,63769.0,63768.0,0.11819993]
[1727074151645,0.0475,63769.0,63768.0,0.21219258]
[1727074153532,0.0475,63769.0,63768.0,0.11819993]
[1727074155646,0.0475,63769.0,63768.0,0.25092795]
[1727074156332,0.078396,63781.0,63768.0,0.48492627]
[1727074156540,0.08,63779.0,63777.0,0.09413375]
[1727074156745,0.08,63779.0,63778.0,0.11119993]
[1727074156942,0.0482,63782.0,63778.0,0.24365222]
[1727074157133,0.08,63781.0,63779.0,0.20532687]
[1727074157338,0.08,63781.0,63780.0,0.11119993]
[1727074158046,0.081,63781.0,63780.0,0.11119993]
[1727074158436,0.082,63781.0,63780.0,0.11219993]
[1727074158641,0.081,63781.0,63780.0,0.11219993]
[1727074158838,0.082,63781.0,63780.0,0.11819993]
[1727074159835,0.082,63781.0,63780.0,0.21232687]
[1727074160031,0.082,63781.0,63780.0,0.11819993]
[1727074162855,0.082,63781.0,63780.0,0.11783261]
[1727074167745,0.082,63781.0,63780.0,0.11776755]
[1727074170147,0.04277418,63781.0,63780.0,0.11776755]
[1727074171355,0.04277418,63781.0,63780.0,0.007]
[1727074173159,0.002,63781.0,63780.0,0.007]
[1727074173459,0.082,63781.0,63780.0,0.007]
[1727074177051,0.082,63781.0,63780.0,0.08527414]
[1727074177256,0.082,63781.0,63780.0,0.19572207]
[1727074178357,0.082,63781.0,63780.0,0.21157487]
[1727074182458,0.082,63781.0,63780.0,0.11744793]
[1727074183063,0.160395,63781.0,63780.0,0.11744793]
[1727074183367,0.160395,63781.0,63780.0,0.21143463]
[1727074184867,0.082,63781.0,63780.0,0.21143463]
[1727074185072,0.082,63781.0,63780.0,0.11744793]
[1727074186166,0.082,63781.0,63780.0,0.24933625]
[1727074186670,0.082,63781.0,63780.0,0.11744793]
[1727074186859,0.082,63781.0,63780.0,0.11765038]
[1727074187064,0.082,63781.0,63780.0,0.24955103]
[1727074187360,0.082,63781.0,63780.0,0.11765038]
[1727074189064,0.082,63781.0,63780.0,0.24955485]
[1727074189269,0.082,63781.0,63780.0,0.11765038]
[1727074189672,0.082,63781.0,63780.0,0.24956828]
[1727074191792,0.082,63781.0,63780.0,0.24955363]
[1727074192078,0.082,63781.0,63780.0,0.11765596]
[1727074192979,0.160395,63781.0,63780.0,0.11765596]
[1727074193179,0.206295,63781.0,63780.0,0.11765596]
[1727074193363,0.567095,63781.0,63780.0,0.11765596]
[1727074194184,0.4887,63781.0,63780.0,0.11765596]
[1727074196185,0.1279,63781.0,63780.0,0.11765596]
[1727074196394,0.206295,63781.0,63780.0,0.11765596]
[1727074196691,0.206295,63781.0,63780.0,0.11773434]
[1727074199093,0.206295,63781.0,63780.0,0.19614411]
[1727074199288,0.206295,63781.0,63780.0,0.007]
[1727074199892,0.206295,63781.0,63780.0,0.06973107]
[1727074200891,0.206295,63781.0,63780.0,0.007]
[1727074201802,0.206295,63781.0,63780.0,0.19632343]
[1727074202093,0.206295,63781.0,63780.0,0.007]
[1727074204084,0.567095,63781.0,63780.0,0.007]
[1727074206296,0.487095,63781.0,63780.0,0.007]
[1727074206594,0.567095,63781.0,63780.0,0.007]
[1727074208388,0.567095,63781.0,63780.0,0.05400247]
[1727074208995,0.487095,63781.0,63780.0,0.05400247]
[1727074209195,0.567095,63781.0,63780.0,0.05400247]
[1727074209722,0.567095,63781.0,63780.0,0.007]
[1727074212091,0.206295,63781.0,63780.0,0.007]
[1727074212292,0.567095,63781.0,63780.0,0.007]
[1727074215193,0.3628,63781.0,63780.0,0.05400392]
[1727074215396,0.002,63781.0,63780.0,0.085396]
[1727074215794,0.08235279,63788.0,63782.0,0.078393]
[1727074216000,0.08235279,63788.0,63784.0,0.07832945]
[1727074216219,0.00235279,63788.0,63787.0,0.06265089]
[1727074216397,0.08235279,63788.0,63787.0,0.11034328]
[1727074216598,0.08235279,63788.0,63787.0,0.56523889]
[1727074216800,0.08235279,63788.0,63787.0,0.47114328]
[1727074217308,0.08235279,63788.0,63787.0,0.56509554]
[1727074218208,0.08235279,63788.0,63787.0,0.47114328]
[1727074218402,0.08235279,63788.0,63787.0,0.47214328]
[1727074218911,0.08235279,63788.0,63787.0,0.47198589]
[1727074219806,0.08235279,63788.0,63787.0,0.47098589]
[1727074220004,0.08235279,63788.0,63787.0,0.47398589]
[1727074220503,0.08235279,63788.0,63787.0,0.47098589]
[1727074220700,0.08235279,63788.0,63787.0,0.47398589]
[1727074221914,0.08235279,63788.0,63787.0,0.47498589]
[1727074222113,0.08,63791.0,63787.0,0.55337389]
[1727074222317,0.078382,63792.0,63787.0,0.55337389]
[1727074222318,0.078382,63792.0,63788.0,0.11018589]
[1727074222522,0.08,63791.0,63789.0,0.11018589]
[1727074222712,0.08,63791.0,63790.0,0.11018589]
[1727074223506,0.08,63791.0,63789.0,0.07820438]
[1727074223714,0.08,63791.0,63789.0,0.15658838]
[1727074224018,0.081,63791.0,63789.0,0.15658838]
[1727074224409,0.081,63791.0,63787.0,0.3618]
[1727074224410,0.001,63791.0,63790.0,0.003]
[1727074224727,0.15837,63802.0,63790.0,0.32346008]
[1727074225018,0.15837,63802.0,63798.0,0.4389768]
[1727074225211,0.15837,63802.0,63801.0,0.06250805]
[1727074226017,0.15837,63802.0,63801.0,0.06250293]
[1727074226218,0.15837,63802.0,63801.0,0.001]
[1727074226417,0.16737,63802.0,63801.0,0.001]
[1727074226615,0.17437,63802.0,63801.0,0.001]
[1727074227220,0.17437,63802.0,63801.0,0.04783639]
[1727074227813,0.17437,63802.0,63801.0,0.04783608]
[1727074228212,0.17437,63802.0,63801.0,0.001]
[1727074229516,0.096,63802.0,63801.0,0.001]
[1727074229716,0.096,63802.0,63801.0,0.04783608]
[1727074230131,0.096,63802.0,63801.0,0.001]
[1727074230525,0.096,63802.0,63801.0,0.04779931]
[1727074231429,0.096,63802.0,63801.0,0.001]
[1727074231926,0.016,63802.0,63801.0,0.079371]
[1727074232117,0.096,63802.0,63801.0,0.079371]
[1727074234426,0.016,63802.0,63801.0,0.079371]
[1727074237336,0.096,63802.0,63801.0,0.079371]
[1727074239144,0.174369,63802.0,63801.0,0.001]
[1727074239439,0.273669,63802.0,63801.0,0.001]
[1727074240536,0.1953,63802.0,63801.0,0.001]
[1727074241235,0.1953,63802.0,63801.0,0.04779931]
[1727074241436,0.1953,63802.0,63801.0,0.001]
[1727074241837,0.1953,63802.0,63801.0,0.04779931]
[1727074242246,0.1953,63802.0,63801.0,0.001]
[1727074242541,0.1953,63802.0,63801.0,0.047826]
[1727074243139,0.1953,63802.0,63801.0,0.001]
[1727074243333,0.273669,63802.0,63801.0,0.001]
[1727074243534,0.273669,63802.0,63801.0,0.04784719]
[1727074243739,0.273669,63802.0,63801.0,0.001]
[1727074244930,0.273669,63802.0,63801.0,0.04785041]
[1727074245130,0.273669,63802.0,63801.0,0.001]
[1727074246148,0.273669,63802.0,63801.0,0.06350293]
[1727074246345,0.273669,63802.0,63801.0,0.001]
[1727074249144,0.273669,63802.0,63801.0,0.04791189]
[1727074249547,0.273669,63802.0,63801.0,0.001]
[1727074250051,0.273669,63802.0,63801.0,0.04791189]
[1727074250950,0.273669,63802.0,63801.0,0.001]
[1727074251252,0.273669,63802.0,63801.0,0.04791189]
[1727074251843,0.273669,63802.0,63801.0,0.001]
[1727074253552,0.273669,63802.0,63801.0,0.18889677]
[1727074253877,0.273669,63802.0,63801.0,0.0791768]
[1727074254150,0.273669,63802.0,63801.0,0.11078739]
[1727074255356,0.1953,63802.0,63801.0,0.11078739]
[1727074257449,0.1953,63802.0,63801.0,0.001]
[1727074258454,0.273669,63802.0,63801.0,0.001]
[1727074264662,0.273669,63802.0,63801.0,0.04800544]
[1727074268968,0.273669,63802.0,63801.0,0.001]
[1727074269575,0.273669,63802.0,63801.0,0.06369032]
[1727074270969,0.273669,63802.0,63800.0,0.06267991]
[1727074271170,0.08,63801.0,63800.0,0.06267991]
[1727074271472,0.078376,63796.0,63795.0,0.07834989]
[1727074271670,0.078376,63796.0,63795.0,0.1813181]
[1727074272065,0.078376,63796.0,63795.0,0.07134989]
[1727074272376,0.08,63797.0,63789.0,0.3608]
[1727074272377,0.07838,63793.0,63790.0,0.09381217]
[1727074272671,0.13818237,63792.0,63791.0,0.10943149]
[1727074273565,0.078383,63791.0,63787.0,0.09381217]
[1727074273762,0.05818237,63792.0,63788.0,0.10927601]
[1727074273958,0.05818237,63792.0,63789.0,0.10927601]
[1727074274164,0.05818237,63792.0,63790.0,0.10927601]
[1727074274462,0.08,63788.0,63787.0,0.09381217]
[1727074274659,0.001,63791.0,63787.0,0.20697591]
[1727074274861,0.001,63791.0,63788.0,0.10916374]
[1727074275173,0.001,63791.0,63789.0,0.10916374]
[1727074275470,0.05918237,63792.0,63790.0,0.11316374]
[1727074275763,0.05918237,63792.0,63791.0,0.10916374]
[1727074276156,0.05918237,63792.0,63790.0,0.004]
[1727074276359,0.08,63791.0,63790.0,0.004]
[1727074276560,0.08,63791.0,63790.0,0.113152]
[1727074276757,0.081,63791.0,63790.0,0.113152]
[1727074277369,0.081,63791.0,63790.0,0.109152]
[1727074277563,0.081,63791.0,63790.0,0.112152]
[1727074278066,0.081,63791.0,63790.0,0.116152]
[1727074279393,0.081,63791.0,63790.0,0.007]
[1727074282068,0.081,63791.0,63790.0,0.11613011]
[1727074282277,0.081,63791.0,63790.0,0.007]
[1727074282970,0.081,63791.0,63790.0,0.1161316]
[1727074283167,0.081,63791.0,63790.0,0.11613764]
[1727074283367,0.081,63791.0,63790.0,0.007]
[1727074283876,0.081,63791.0,63790.0,0.05395226]
[1727074284573,0.081,63791.0,63790.0,0.007]
[1727074290878,0.081,63791.0,63790.0,0.11616551]
[1727074294992,0.081,63791.0,63790.0,0.20997768]
[1727074296204,0.081,63791.0,63790.0,0.11616551]
[1727074298586,0.081,63791.0,63790.0,0.20997768]
[1727074298892,0.081,63791.0,63790.0,0.007]
[1727074301390,0.159382,63791.0,63790.0,0.007]
[1727074301686,0.081,63791.0,63790.0,0.007]
[1727074304996,0.081,63791.0,63790.0,0.08532422]
[1727074305194,0.001,63791.0,63790.0,0.08532422]
[1727074305392,0.081,63791.0,63790.0,0.08532422]
[1727074306087,0.081,63791.0,63790.0,0.2465399]
[1727074306590,0.001,63791.0,63790.0,0.6873399]
[1727074306784,0.3608,63796.0,63790.0,0.6873399]
[1727074306984,0.3608,63796.0,63793.0,0.078379]
[1727074307189,0.3608,63796.0,63794.0,0.2395399]
[1727074307390,0.08,63797.0,63795.0,0.10928106]
[1727074307695,0.08,63797.0,63796.0,0.10928106]
[1727074308391,0.078374,63798.0,63796.0,0.10928106]
[1727074308593,0.078374,63798.0,63797.0,0.10928106]
[1727074308895,0.158374,63798.0,63797.0,0.10928106]
[1727074310401,0.163374,63798.0,63797.0,0.10928106]
[1727074310984,0.165374,63798.0,63797.0,0.10928106]
[1727074311391,0.165374,63798.0,63797.0,0.1874056]
[1727074311993,0.078375,63797.0,63796.0,0.07812454]
[1727074312195,0.078375,63797.0,63795.0,0.07812454]
[1727074312196,0.1272,63797.0,63795.0,0.07812454]
[1727074312391,0.08,63796.0,63794.0,0.07812454]
[1727074312619,0.08,63795.0,63794.0,0.07812454]
[1727074312800,0.08,63795.0,63794.0,0.18694516]
[1727074313005,0.158377,63795.0,63794.0,0.18694516]
[1727074314004,0.160377,63795.0,63793.0,0.0468621]
[1727074314195,0.080377,63795.0,63794.0,0.001]
[1727074314705,0.160377,63795.0,63794.0,0.0478621]
[1727074314893,0.160377,63795.0,63794.0,0.001]
[1727074315497,0.159377,63795.0,63794.0,0.04786073]
[1727074316503,0.160377,63795.0,63794.0,0.04786073]
[1727074317296,0.160377,63795.0,63794.0,0.0468504]
[1727074317902,0.160377,63795.0,63794.0,0.0478504]
[1727074318801,0.160377,63795.0,63794.0,0.001]
[1727074320510,0.082,63795.0,63794.0,0.001]
[1727074321113,0.082,63795.0,63794.0,0.1096498]
[1727074321415,0.160372,63795.0,63794.0,0.1096498]
[1727074322708,0.160372,63795.0,63794.0,0.10943132]
[1727074323804,0.082,63795.0,63794.0,0.10943132]
[1727074324606,0.002,63795.0,63794.0,0.10943132]
[1727074324805,0.002,63795.0,63794.0,0.31675452]
[1727074325010,0.002,63795.0,63794.0,0.18780432]
[1727074325304,0.002,63795.0,63794.0,0.31668352]
[1727074325499,0.002,63795.0,63794.0,0.18780432]
[1727074328310,0.002,63795.0,63794.0,0.28140095]
[1727074328808,0.002,63795.0,63794.0,0.20302795]
[1727074329015,0.002,63795.0,63794.0,0.001]
[1727074330526,0.3628,63795.0,63794.0,0.001]
[1727074331016,0.048,63795.0,63794.0,0.001]
[1727074331400,0.126372,63795.0,63794.0,0.001]
[1727074336111,0.126372,63795.0,63794.0,0.10936971]
[1727074337006,0.126372,63795.0,63794.0,0.10938899]
[1727074337625,0.126372,63795.0,63794.0,0.18742178]
[1727074338006,0.126372,63795.0,63794.0,0.1874215]
[1727074339026,0.078379,63789.0,63785.0,0.07805814]
[1727074339213,0.078379,63789.0,63781.0,0.09359663]
[1727074339214,0.4408,63786.0,63781.0,0.09359663]
[1727074339520,0.4408,63786.0,63780.0,0.42039663]
[1727074339521,0.158389,63782.0,63780.0,0.42039663]
[1727074339711,0.158389,63782.0,63781.0,0.10761387]
[1727074341118,0.158389,63782.0,63781.0,0.11161387]
[1727074341316,0.159389,63782.0,63781.0,0.12061387]
[1727074341507,0.159389,63782.0,63781.0,0.11661387]
[1727074341714,0.160389,63782.0,63781.0,0.12053998]
[1727074342519,0.160389,63782.0,63781.0,0.013]
[1727074344220,0.630749,63782.0,63781.0,0.013]
[1727074344416,1.15236,63782.0,63780.0,0.04678666]
[1727074344611,0.078391,63779.0,63778.0,0.04678666]
[1727074344814,0.078391,63779.0,63778.0,0.0467916]
[1727074344815,0.519191,63779.0,63778.0,0.0467916]
[1727074345120,0.078393,63778.0,63764.0,0.0037]
[1727074345314,0.439208,63765.0,63762.0,0.00236]
[1727074345537,0.08,63763.0,63762.0,0.0012]
[1727074345715,0.08,63763.0,63758.0,0.1447]
[1727074345918,0.078408,63765.0,63759.0,0.10726379]
[1727074346120,0.078408,63765.0,63760.0,0.10726379]
[1727074346422,0.078408,63765.0,63758.0,0.1447]
[1727074346423,0.078408,63765.0,63761.0,0.10651397]
[1727074346623,0.078408,63765.0,63758.0,0.1447]
[1727074346624,0.08,63762.0,63758.0,0.1447]
[1727074346821,0.078408,63765.0,63759.0,0.10646329]
[1727074347015,0.078408,63765.0,63760.0,0.10646329]
[1727074347321,0.078408,63765.0,63758.0,0.1447]
[1727074347322,0.08,63761.0,63758.0,0.1447]
[1727074347521,0.08,63761.0,63759.0,0.10635966]
[1727074347718,0.08,63761.0,63758.0,0.1447]
[1727074347914,0.03291991,63761.0,63759.0,0.10637422]
[1727074348221,0.08,63760.0,63758.0,0.1447]
[1727074349410,0.081,63760.0,63758.0,0.1447]
[1727074350926,0.081,63760.0,63755.0,0.3608]
[1727074351114,0.08,63757.0,63755.0,0.3608]
[1727074352124,0.08,63757.0,63747.0,0.1439]
[1727074352420,0.08,63748.0,63747.0,0.1439]
[1727074354628,0.081,63748.0,63747.0,0.1439]
[1727074354825,0.082,63748.0,63747.0,0.1439]
[1727074355131,0.002,63748.0,63747.0,0.1439]
[1727074355527,0.082,63748.0,63747.0,0.1439]
[1727074356122,0.160429,63748.0,63747.0,0.0961]
[1727074356623,0.160429,63748.0,63747.0,0.0482]
[1727074357028,0.082,63748.0,63747.0,0.0482]
[1727074357531,0.082,63748.0,63743.0,0.3608]
[1727074357828,0.08,63745.0,63743.0,0.3608]
[1727074359122,0.081,63745.0,63743.0,0.3608]
[1727074360329,0.082,63745.0,63743.0,0.3608]
[1727074362435,0.160433,63745.0,63743.0,0.3608]
[1727074365225,0.160433,63745.0,63742.0,0.44159019]
[1727074366128,0.12118937,63745.0,63742.0,0.44159019]
[1727074366323,0.12018937,63745.0,63742.0,0.44159019]
[1727074366525,0.12118937,63745.0,63742.0,0.44159019]
[1727074367834,0.12118937,63745.0,63742.0,0.36315319]
[1727074368023,0.07409735,63745.0,63744.0,0.078434]
[1727074368226,0.15409735,63745.0,63744.0,0.078434]
[1727074368422,0.081,63745.0,63744.0,0.18438307]
[1727074368622,0.082,63745.0,63744.0,0.18438307]
[1727074369039,0.082,63745.0,63744.0,0.26230535]
[1727074369333,0.082,63745.0,63744.0,0.18438307]
[1727074369540,0.082,63745.0,63744.0,0.26232851]
[1727074369742,0.082,63745.0,63744.0,0.26241359]
[1727074370446,0.082,63745.0,63744.0,0.18446815]
[1727074373837,0.160433,63745.0,63744.0,0.10603415]
[1727074374431,0.160433,63745.0,63744.0,0.19974756]
[1727074375341,0.160433,63745.0,63744.0,0.10603415]
[1727074375736,0.160433,63745.0,63744.0,0.19984968]
[1727074376038,0.10548874,63745.0,63744.0,0.10603415]
[1727074376342,0.10548874,63745.0,63744.0,0.19985609]
[1727074377039,0.10548874,63745.0,63744.0,0.10603415]
[1727074378339,0.10548874,63745.0,63744.0,0.19985609]
[1727074379241,0.10548874,63745.0,63744.0,0.19994112]
[1727074379435,0.10548874,63745.0,63744.0,0.10611918]
[1727074381342,0.10548874,63745.0,63744.0,0.23278631]
[1727074381548,0.10548874,63745.0,63744.0,0.10611918]
[1727074382534,0.10548874,63745.0,63744.0,0.10632734]
[1727074382535,0.02705574,63745.0,63744.0,0.10632734]
[1727074383757,0.02705574,63745.0,63744.0,0.10630612]
[1727074384644,0.02705574,63745.0,63744.0,0.23301479]
[1727074385650,0.10548874,63745.0,63744.0,0.23301479]
[1727074387253,0.10548874,63745.0,63744.0,0.23286215]
[1727074388455,0.10548874,63745.0,63744.0,0.10623459]
[1727074390354,0.10548874,63745.0,63744.0,0.20022389]
[1727074391057,0.10548874,63745.0,63744.0,0.10623459]
[1727074391254,0.10548874,63745.0,63744.0,0.20022389]
[1727074391455,0.10548874,63745.0,63744.0,0.10623459]
[1727074392066,0.10548874,63745.0,63744.0,0.10632523]
[1727074395354,0.080433,63745.0,63744.0,0.10632523]
[1727074395664,0.082,63745.0,63744.0,0.10632523]
[1727074395848,0.082,63745.0,63744.0,0.20031453]
[1727074396050,0.082,63745.0,63744.0,0.10632523]
[1727074396853,0.082,63745.0,63744.0,0.10630305]
[1727074398458,0.082,63745.0,63744.0,0.23298207]
[1727074398970,0.002,63745.0,63744.0,0.10630305]
[1727074399161,0.002,63745.0,63744.0,0.31132583]
[1727074401365,0.002,63745.0,63744.0,0.18305726]
[1727074401571,0.002,63745.0,63744.0,0.30776418]
[1727074402062,0.002,63745.0,63744.0,0.66956418]
[1727074403155,0.001,63745.0,63744.0,0.66956418]
[1727074403468,0.001,63745.0,63744.0,0.54485726]
[1727074403767,0.002,63745.0,63744.0,0.54485726]
[1727074405169,0.002,63745.0,63744.0,0.62316668]
[1727074405654,0.00092,63754.0,63744.0,1.61706326]
[1727074405857,0.078421,63756.0,63753.0,0.08]
[1727074406057,0.158421,63755.0,63752.0,0.15671164]
[1727074406361,0.00235351,63758.0,63750.0,0.4408]
[1727074406362,0.078424,63752.0,63751.0,0.07828864]
[1727074406565,0.08,63753.0,63750.0,0.07828864]
[1727074406566,0.078426,63751.0,63750.0,0.07828864]
[1727074406874,0.078426,63751.0,63749.0,0.07828864]
[1727074407059,0.08,63750.0,63748.0,0.078429]
[1727074407257,0.08,63750.0,63749.0,0.07824065]
[1727074407453,0.08,63750.0,63749.0,0.18262074]
[1727074407755,0.08,63750.0,63748.0,0.078429]
[1727074407756,0.08,63750.0,63748.0,0.15666965]
[1727074408368,0.08,63750.0,63749.0,0.18255689]
[1727074408669,0.081,63750.0,63749.0,0.18355689]
[1727074408858,0.081,63750.0,63749.0,0.07924065]
[1727074409365,0.082,63750.0,63749.0,0.001]
[1727074409666,0.081,63750.0,63749.0,0.001]
[1727074409864,0.082,63750.0,63749.0,0.004]
[1727074411360,0.06624868,63751.0,63749.0,0.10826817]
[1727074411562,0.08,63750.0,63749.0,0.004]
[1727074411765,0.08,63750.0,63749.0,0.10825719]
[1727074414164,0.08,63750.0,63749.0,0.10725719]
[1727074414366,0.081,63750.0,63749.0,0.20308485]
[1727074415560,0.081,63750.0,63749.0,0.20233124]
[1727074416970,0.159427,63750.0,63749.0,0.10850358]
[1727074418261,0.159427,63750.0,63749.0,0.005]
[1727074418973,0.159427,63750.0,63749.0,0.06755963]
[1727074419280,0.159427,63750.0,63749.0,0.005]
[1727074428996,0.159427,63750.0,63749.0,0.06761992]
[1727074430189,0.159427,63750.0,63749.0,0.005]
[1727074430190,0.237854,63750.0,63749.0,0.005]
[1727074434193,0.159427,63750.0,63741.0,0.06261992]
[1727074434397,0.07844,63739.0,63738.0,0.07819162]
[1727074434589,0.078442,63738.0,63737.0,0.07819162]